fUST/lending_fUST_20240823
["ID","MTS","AMOUNT","RATE_DAILY","PERIOD"]
[335588505,1724345922091,10000.0,0.00025,60]
[335588507,1724346004455,10000.0,0.00025,60]
[335588508,1724346020179,10000.0,0.00025,60]
[335588527,1724346583313,200.41648031,0.00011999,2]
[335588545,1724346631979,-534.45169516,0.00012689,2]
[335588547,1724346631991,-951.20081463,0.00013283,2]
[335588549,1724346632002,-515.33506,0.00014247,2]
[335588551,1724346632011,-22083.04218555,0.0001599,2]
[335588614,1724346638468,-155901.04663545,0.0001599,2]
[335588616,1724346638479,-100000.0,0.00016,2]
[335588618,1724346638489,-1111.3564694,0.00018081,2]
[335588620,1724346638499,-151.0,0.000184,2]
[335588622,1724346638508,-500.0,0.00018521,2]
[335588624,1724346638519,-290.93966491,0.0001867,2]
[335588626,1724346638529,-88992.0444107,0.00018675,2]
[335588628,1724346638538,-5623.26419453,0.0001871,2]
[335588630,1724346638548,-500.0,0.00018873,2]
[335588632,1724346638558,-500.7532893,0.00018873,2]
[335588634,1724346638567,-500.0,0.00018873,2]
[335588636,1724346638576,-500.0,0.00018875,2]
[335588638,1724346638585,-234.99971737,0.00018875,2]
[335588640,1724346638595,-500.0,0.00018875,2]
[335588642,1724346638604,-194.7750381,0.00018875,2]
[335588643,1724346638614,-500.0,0.00018875,2]
[335588645,1724346638625,-500.0,0.00018875,2]
[335588647,1724346638635,-500.0,0.00018875,2]
[335588649,1724346638645,-500.0,0.00018875,2]
[335588651,1724346638656,-500.0,0.00018875,2]
[335588653,1724346638666,-500.0,0.00018875,2]
[335588655,1724346638676,-500.0,0.00018875,2]
[335588657,1724346638686,-500.0,0.00018875,2]
[335588659,1724346638696,-500.0,0.00018875,2]
[335588661,1724346638706,-291.7918015,0.00018875,2]
[335588662,1724346638716,-500.0,0.00018875,2]
[335588663,1724346638727,-500.0,0.00018875,2]
[335588664,1724346638742,-500.0,0.00018875,2]
[335588665,1724346638752,-500.0,0.00018875,2]
[335588666,1724346638762,-500.0,0.00018875,2]
[335588667,1724346638773,-600.0,0.00018875,2]
[335588668,1724346638783,-500.0,0.00018875,2]
[335588669,1724346638793,-500.0,0.00018875,2]
[335588670,1724346638803,-500.0,0.00018875,2]
[335588671,1724346638813,-300.0,0.00018875,2]
[335588672,1724346638824,-88992.0444107,0.00018876,2]
[335588673,1724346638833,-151.0,0.00018876,2]
[335588674,1724346638843,-6305.74536532,0.00018885,9]
[335588675,1724346638853,-57831.46102966,0.00018886,2]
[335588676,1724346638864,-1718.10922644,0.00018886,2]
[335588677,1724346638875,-76148.07717097,0.00018912,2]
[335588678,1724346638888,-9836.16253201,0.00018912,2]
[335588703,1724346640235,-3007.80470772,0.00018912,2]
[335588705,1724346640247,-151.0,0.00018912,2]
[335588707,1724346640260,-32988.40127749,0.00018922,2]
[335588709,1724346640271,-151.0,0.00018986,2]
[335588711,1724346640281,-151.0,0.00018986,2]
[335588713,1724346640291,-151.0,0.00018986,2]
[335588716,1724346640303,-151.0,0.00018986,2]
[335588718,1724346640314,-151.0,0.00018986,2]
[335588720,1724346640325,-616.85736674,0.00018996,2]
[335588723,1724346640340,-64750.66856556,0.00018996,2]
[335588804,1724346643268,-215.97173316,0.00018873,2]
[335588805,1724346643278,-8881.94428523,0.00018996,2]
[335588806,1724346643290,-59148.30611388,0.00018996,2]
[335589834,1724347248006,-24.80981577,0.00028767,120]
[335589842,1724347285669,1314.11,0.0001211,2]
[335589957,1724347840447,-324.14756528,0.0001211,2]
[335589958,1724347840459,-5701.46860224,0.0001211,2]
[335589959,1724347840470,-2221.47647721,0.00013599,3]
[335589960,1724347840481,-489.568307,0.00014247,2]
[335589961,1724347840491,-19315.49884402,0.00017299,2]
[335589962,1724347840517,-1111.3564694,0.00018016,2]
[335589964,1724347840530,-500.0,0.00018521,2]
[335589965,1724347840539,-5171.88994436,0.00018896,2]
[335589990,1724348291074,247.41018423,0.00028767,120]
[335589991,1724348291096,272.22,0.00028767,120]
[335589992,1724348291118,272.22,0.00028767,120]
[335589993,1724348291140,272.22,0.00028767,120]
[335589994,1724348291162,196.25981577,0.00028767,120]
[335589995,1724348291210,75.96018423,0.000287,120]
[335589996,1724348291233,246.70441577,0.000287,120]
[335589998,1724348520873,154.76012181,0.00011999,2]
[335590057,1724349032651,-154.76012181,0.00013698,2]
[335590058,1724349032663,-154.76012181,0.00013698,2]
[335590059,1724349032674,-465.089891,0.00014247,2]
[335590060,1724349032685,-394.35944894,0.00018393,2]
[335590340,1724349040782,-2146.88735616,0.00013497,3]
[335590342,1724349040792,-4343.76537458,0.00018393,2]
[335590344,1724349040803,-500.0,0.00018521,2]
[335590347,1724349040817,-875.58180775,0.00018859,2]
[335590349,1724349040827,-529.44,0.00018949,3]
[335590351,1724349040837,-300.0,0.00018957,2]
[335590353,1724349040848,-500.0,0.00018958,2]
[335590355,1724349040859,-500.0,0.00018958,2]
[335590358,1724349040869,-394.21883987,0.00018958,2]
[335590359,1724349040879,-3586.04375511,0.00018958,9]
[335590361,1724349040888,-10352.86890419,0.00018959,2]
[335590695,1724349043642,-59148.30611388,0.00018959,2]
[335591004,1724349046467,-139793.39901693,0.00018959,2]
[335591006,1724349046478,-139529.716024,0.00018969,2]
[335591008,1724349046487,-514.49980216,0.00018978,2]
[335591010,1724349046497,-500.0,0.00018978,2]
[335591012,1724349046507,-500.0,0.00018978,2]
[335591014,1724349046517,-500.0,0.00018978,2]
[335591016,1724349046527,-500.0,0.00018978,2]
[335591018,1724349046538,-186.25426105,0.00018978,2]
[335591021,1724349046550,-500.0,0.00018978,2]
[335591023,1724349046561,-500.0,0.00018978,2]
[335591025,1724349046573,-500.0,0.00018978,2]
[335591028,1724349046583,-500.0,0.00018978,2]
[335591030,1724349046593,-500.0,0.00018978,2]
[335591032,1724349046602,-500.0,0.00018978,2]
[335591034,1724349046612,-500.0,0.00018978,2]
[335591037,1724349046624,-500.0,0.00018978,2]
[335591039,1724349046635,-500.0,0.00018978,2]
[335591041,1724349046646,-500.0,0.00018978,2]
[335591043,1724349046657,-168.37798274,0.00018978,2]
[335591045,1724349046669,-8109.03644471,0.00018979,9]
[335591048,1724349046681,-76571.36235412,0.00018979,2]
[335596308,1724350232647,-154.76012181,0.00012898,2]
[335596310,1724350232656,-375.57866255,0.00012991,2]
[335596312,1724350232665,-441.835396,0.00014247,2]
[335596314,1724350232674,-10283.82024876,0.00017898,2]
[335596340,1724350238688,-61.5033895,0.00017898,2]
[335596341,1724350238698,-242.1482465,0.00018,2]
[335596355,1724350240916,-2863.8077135,0.00018,2]
[335596356,1724350240928,-500.0,0.00018521,2]
[335596357,1724350240939,-4738.12482352,0.00018725,2]
[335596358,1724350240949,-766.13408179,0.00018867,2]
[335596359,1724350240960,-52323.6435088,0.00018957,2]
[335596360,1724350240972,-16187.4733855,0.00018967,2]
[335596404,1724350246720,-154.76012181,0.00012886,2]
[335596405,1724350246732,-924.56985795,0.00018967,2]
[335596538,1724351440107,-154.76784823,0.00013497,2]
[335596540,1724351440117,-419.743626,0.00014247,2]
[335596542,1724351440127,-574.44735433,0.0001816,2]
[335596544,1724351440137,-500.0,0.00018521,2]
[335596546,1724351440148,-4763.105197,0.00018655,2]
[335596549,1724351440160,-670.36732154,0.00018867,2]
[335596551,1724351440170,-1173.96638076,0.000189,2]
[335596553,1724351440182,-4698.40801824,0.000189,2]
[335596555,1724351440192,-307.7753528,0.00018918,2]
[335596557,1724351440201,-2858.42662896,0.00018957,2]
[335596560,1724351440215,-6040.9,0.00018957,2]
[335596680,1724351848543,25.51558423,0.00028767,120]
[335596681,1724351848568,272.22,0.00028767,120]
[335596682,1724351848589,202.26441577,0.00028767,120]
[335596685,1724351903624,69.95558423,0.00028767,120]
[335596686,1724351903647,272.22,0.00028767,120]
[335596687,1724351903668,157.82441577,0.00028767,120]
[335596688,1724351911096,114.39558423,0.00028767,120]
[335596689,1724351911119,272.22,0.00028767,120]
[335596690,1724351911144,113.38441577,0.00028767,120]
[335596691,1724351919808,158.83558423,0.00028767,120]
[335596692,1724351919830,272.22,0.00028767,120]
[335596693,1724351919851,68.94441577,0.00028767,120]
[335596694,1724351927706,203.27558423,0.00028767,120]
[335596695,1724351927729,272.22,0.00028767,120]
[335596696,1724351927751,24.50441577,0.00028767,120]
[335596697,1724351935854,247.71558423,0.00028767,120]
[335596698,1724351935875,252.28441577,0.00028767,120]
[335596699,1724351944873,19.93558423,0.00028767,120]
[335596700,1724351944897,272.22,0.00028767,120]
[335596701,1724351944921,207.84441577,0.00028767,120]
[335596703,1724351953058,64.37558423,0.00028767,120]
[335596704,1724351953080,272.22,0.00028767,120]
[335596705,1724351953101,163.40441577,0.00028767,120]
[335596706,1724351960014,108.81558423,0.00028767,120]
[335596707,1724351960039,272.22,0.00028767,120]
[335596708,1724351960064,118.96441577,0.00028767,120]
[335596709,1724351967121,153.25558423,0.00028767,120]
[335596710,1724351967143,272.22,0.00028767,120]
[335596711,1724351967165,74.52441577,0.00028767,120]
[335596712,1724351975851,197.69558423,0.00028767,120]
[335596713,1724351975874,272.22,0.00028767,120]
[335596714,1724351975894,30.08441577,0.00028767,120]
[335596715,1724351985003,242.13558423,0.00028767,120]
[335596716,1724351985026,257.86441577,0.00028767,120]
[335596717,1724351992011,14.35558423,0.00028767,120]
[335596718,1724351992032,272.22,0.00028767,120]
[335596719,1724351992054,213.42441577,0.00028767,120]
[335596720,1724351999233,58.79558423,0.00028767,120]
[335596721,1724351999257,272.0,0.00028767,120]
[335596722,1724351999281,169.20441577,0.00028767,120]
[335596723,1724352018011,103.01558423,0.00028767,120]
[335596724,1724352018036,272.22,0.00028767,120]
[335596725,1724352018060,124.76441577,0.00028767,120]
[335596726,1724352024900,147.45558423,0.00028767,120]
[335596727,1724352024922,272.22,0.00028767,120]
[335596728,1724352024948,80.32441577,0.00028767,120]
[335596729,1724352034210,191.89558423,0.00028767,120]
[335596730,1724352034233,272.22,0.00028767,120]
[335596731,1724352034254,35.88441577,0.00028767,120]
[335596732,1724352059798,236.33558423,0.00028767,120]
[335596733,1724352059820,168.02832077,0.00028767,120]
[335596854,1724352638270,-273.93042458,0.00012934,2]
[335596856,1724352638280,-410.537679,0.00014247,2]
[335596858,1724352638289,-6439.13633309,0.00018,2]
[335596860,1724352638299,-500.0,0.00018521,2]
[335596862,1724352638309,-1111.3564694,0.00018647,2]
[335596864,1724352638319,-4763.10519701,0.00018765,2]
[335596866,1724352638329,-153.0,0.000188,2]
[335596868,1724352638339,-153.0,0.000188,2]
[335596870,1724352638348,-2000.0,0.0001886,2]
[335596872,1724352638358,-3000.0,0.000189,2]
[335596874,1724352638369,-153.0,0.000189,2]
[335596876,1724352638380,-153.0,0.000189,2]
[335596878,1724352638389,-3000.0,0.0001891,2]
[335596880,1724352638399,-3000.0,0.0001892,2]
[335596882,1724352638409,-3000.0,0.0001893,2]
[335596884,1724352638419,-3000.0,0.0001894,2]
[335596886,1724352638436,-207.6636928,0.00018943,2]
[335596888,1724352638446,-415.3273856,0.00018943,2]
[335596890,1724352638458,-3000.0,0.0001895,2]
[335596892,1724352638469,-53826.9112203,0.00018951,2]
[335596894,1724352638479,-151.0,0.00018957,2]
[335596896,1724352638494,-151.0,0.00018957,2]
[335596899,1724352638506,-151.0,0.00018957,2]
[335596901,1724352638517,-151.0,0.00018957,2]
[335596903,1724352638530,-295.942816,0.00018957,2]
[335596905,1724352638542,-295.942816,0.00018957,2]
[335596907,1724352638551,-151.0,0.00018957,2]
[335596910,1724352638563,-151.0,0.00018957,2]
[335596912,1724352638574,-151.0,0.00018957,2]
[335596914,1724352638583,-151.0,0.00018957,2]
[335596916,1724352638594,-151.0,0.00018957,2]
[335596918,1724352638604,-151.0,0.00018957,2]
[335596920,1724352638613,-151.0,0.00018957,2]
[335596922,1724352638624,-107653.822441,0.00018957,2]
[335596924,1724352638635,-3000.0,0.0001896,2]
[335596926,1724352638645,-151.0,0.0001896,2]
[335596929,1724352638655,-151.0,0.0001896,2]
[335596931,1724352638667,-471.708292,0.0001896,2]
[335596933,1724352638678,-471.708292,0.0001896,2]
[335596935,1724352638687,-151.0,0.0001896,2]
[335596937,1724352638699,-53826.9112203,0.0001896,2]
[335596939,1724352638710,-151.784815,0.00018961,2]
[335596942,1724352638721,-456.103761,0.00018961,2]
[335596944,1724352638731,-456.103761,0.00018961,2]
[335596946,1724352638742,-151.0,0.00018961,2]
[335596948,1724352638753,-284.825664,0.00018961,2]
[335596950,1724352638762,-151.0,0.00018961,2]
[335596952,1724352638772,-295.942816,0.00018961,2]
[335596954,1724352638781,-295.942816,0.00018961,2]
[335596956,1724352638790,-151.0,0.00018961,2]
[335596958,1724352638799,-151.0,0.00018961,2]
[335596960,1724352638809,-151.0,0.00018961,2]
[335596962,1724352638818,-151.0,0.00018961,2]
[335596964,1724352638828,-151.0,0.00018961,2]
[335596966,1724352638837,-151.0,0.00018961,2]
[335596968,1724352638847,-151.0,0.00018967,2]
[335596970,1724352638856,-151.0,0.00018967,2]
[335596972,1724352638866,-250.984325,0.00018967,2]
[335596975,1724352638876,-235.893729,0.00018967,2]
[335596977,1724352638886,-270.545883,0.00018967,2]
[335596979,1724352638895,-270.545883,0.00018967,2]
[335596981,1724352638904,-151.0,0.00018967,2]
[335596983,1724352638914,-456.103761,0.00018967,2]
[335596985,1724352638923,-456.103761,0.00018967,2]
[335596987,1724352638932,-151.0,0.00018967,2]
[335596988,1724352638942,-151.0,0.00018967,2]
[335596990,1724352638952,-295.942816,0.00018967,2]
[335596993,1724352638963,-295.942816,0.00018967,2]
[335596995,1724352638975,-151.0,0.00018967,2]
[335596997,1724352638986,-151.0,0.00018967,2]
[335596999,1724352638996,-151.0,0.00018967,2]
[335597001,1724352639008,-151.0,0.00018967,2]
[335597003,1724352639017,-151.0,0.00018967,2]
[335597006,1724352639027,-151.0,0.00018967,2]
[335597008,1724352639037,-151.0,0.00018967,2]
[335597010,1724352639047,-471.708292,0.00018967,2]
[335597012,1724352639057,-471.708292,0.00018967,2]
[335597014,1724352639067,-151.0,0.00018967,2]
[335597016,1724352639076,-37737.0561923,0.00018967,2]
[335597765,1724353832330,-223.17571711,0.00012971,2]
[335597767,1724353832340,-209.98113273,0.00012971,2]
[335597769,1724353832350,-575.37787667,0.00012985,2]
[335597771,1724353832360,-162.40378963,0.00012985,2]
[335597773,1724353832369,-408.931257,0.00014247,2]
[335597775,1724353832379,-500.0,0.00018521,2]
[335597778,1724353832389,-153.0,0.000186,2]
[335597781,1724353832399,-785.10133981,0.00018867,2]
[335597784,1724353832409,-3000.0,0.000189,2]
[335597787,1724353832420,-153.0,0.000189,2]
[335597790,1724353832430,-153.0,0.000189,2]
[335597792,1724353832440,-0.72424564,0.0001891,2]
[335597857,1724353838368,-341.43157984,0.00013697,2]
[335597859,1724353838378,-25.56321254,0.0001891,2]
[335597864,1724353838421,-2973.71254182,0.0001891,2]
[335597867,1724353838432,-3000.0,0.0001892,2]
[335597869,1724353838444,-3000.0,0.0001893,2]
[335597871,1724353838455,-154.77557542,0.00018931,2]
[335597873,1724353838465,-3000.0,0.0001894,2]
[335597875,1724353838475,-3000.0,0.0001895,2]
[335597877,1724353838484,-4450.481882,0.0001896,2]
[335597879,1724353838494,-150.01,0.00018966,2]
[335597881,1724353838505,-885.13829834,0.00018966,2]
[335597894,1724353838616,-287.38831,0.00018966,2]
[335598368,1724353843686,-364.60645723,0.00018966,2]
[335598651,1724355032450,-388.484694,0.00014247,2]
[335598652,1724355032459,-181.5887755,0.00017963,2]
[335598653,1724355032469,-10345.32363826,0.00017999,2]
[335598654,1724355032478,-500.0,0.00018521,2]
[335598656,1724355032487,-153.0,0.000189,2]
[335598658,1724355032497,-150.0,0.000189,2]
[335598660,1724355032506,-21163.6676226,0.00018956,2]
[335598800,1724355046508,-1820.25300435,0.00018956,2]
[335598846,1724356232614,-395.031853,0.00014247,2]
[335598847,1724356232625,-181.5887755,0.00017953,2]
[335598848,1724356232636,-574.44735433,0.00018245,2]
[335598849,1724356232646,-500.0,0.00018521,2]
[335598850,1724356232657,-1093.61201717,0.00018849,2]
[335598851,1724356232672,-1955.85165512,0.00018849,2]
[335598852,1724356232683,-150.0,0.000189,2]
[335598853,1724356232695,-21180.17464709,0.00018947,2]
[335598855,1724356232708,-717.37873036,0.00018947,2]
[335598910,1724356238839,-618.00417165,0.00018947,2]
[335598935,1724356240896,-1793.02187756,0.00018947,9]
[335598936,1724356240907,-2038.06209847,0.00018947,2]
[335599146,1724357432030,-188.6196501,0.00013698,2]
[335599148,1724357432041,-375.28026,0.00014247,2]
[335599150,1724357432051,-500.0,0.00017996,7]
[335599152,1724357432061,-500.0,0.00017996,7]
[335599154,1724357432072,-500.0,0.00017996,7]
[335599156,1724357432082,-484.6400899,0.00017996,7]
[335599212,1724357438048,-15.3599101,0.00017996,7]
[335599215,1724357438060,-500.0,0.00017996,7]
[335599217,1724357438071,-361.58,0.00017996,7]
[335599219,1724357438082,-500.0,0.00018521,2]
[335599221,1724357438094,-1975.2287739,0.00018846,2]
[335599413,1724357440034,-937.53339627,0.00018846,2]
[335599414,1724357440047,-896.51093878,0.00018944,9]
[335599415,1724357440059,-3348.95566495,0.00018945,2]
[335600197,1724358643087,-646.51605996,0.00012971,2]
[335600199,1724358643098,-383.658767,0.00014247,2]
[335600201,1724358643110,-300.0,0.00017485,2]
[335600203,1724358643122,-448.25546939,0.00017486,9]
[335600205,1724358643133,-19152.6867619,0.00017486,2]
[335600207,1724358643143,-215.207307,0.00017557,2]
[335600209,1724358643153,-475.46180756,0.00018289,2]
[335600211,1724358643167,-500.0,0.00018521,2]
[335600213,1724358643176,-153.0,0.000186,2]
[335600216,1724358643188,-154.77557542,0.00018612,2]
[335600218,1724358643199,-277.72945572,0.00018612,2]
[335600220,1724358643211,-10345.32363826,0.00018629,2]
[335600222,1724358643221,-308.1237061,0.000189,2]
[335600224,1724358643234,-150.0,0.000189,2]
[335600227,1724358643246,-1416.0,0.00018916,2]
[335600229,1724358643259,-150.0,0.00018916,2]
[335600231,1724358643270,-522.0,0.00018916,2]
[335600233,1724358643280,-1094.014104,0.0001893,2]
[335600236,1724358643291,-1094.014104,0.0001893,2]
[335600238,1724358643300,-164.641482,0.0001893,2]
[335600240,1724358643312,-164.641482,0.0001893,2]
[335600242,1724358643321,-151.0,0.0001893,2]
[335600244,1724358643331,-151.0,0.0001893,2]
[335600246,1724358643342,-151.0,0.0001893,2]
[335600248,1724358643353,-151.0,0.0001893,2]
[335600251,1724358643363,-953.69627248,0.00018931,2]
[335600252,1724358643374,-12272.88281096,0.00018935,2]
[335600457,1724358774520,104.19167923,0.00028493,120]
[335600458,1724358774541,95.68128877,0.00028493,120]
[335600620,1724359838292,-410.959619,0.00014247,2]
[335600621,1724359838302,-52.64840638,0.00017299,2]
[335600651,1724359843341,-219.50365684,0.00017299,2]
[335600652,1724359843351,-166.6666703,0.00017895,2]
[335600653,1724359843360,-500.0,0.00018521,2]
[335600654,1724359843369,-382.71556026,0.00018814,2]
[335600655,1724359843381,-2991.1134881,0.00018814,2]
[335600656,1724359843391,-499.65686042,0.00018817,2]
[335600657,1724359843400,-2000.0,0.00018825,2]
[335600658,1724359843410,-300.0,0.00018834,2]
[335600659,1724359843419,-13799.08888126,0.00018835,2]
[335600660,1724359843430,-576.91,0.00018905,3]
[335600661,1724359843442,-224.12773469,0.0001891,9]
[335600662,1724359843453,-38757.40914941,0.0001891,2]
[335600690,1724359846304,-782.65797788,0.0001891,2]
[335600692,1724359846316,-3032.52533185,0.0001891,2]
[335600695,1724359846330,-8507.01854506,0.0001891,2]
[335600696,1724359846340,-500.0,0.00018914,2]
[335600698,1724359846351,-500.0,0.00018914,2]
[335600700,1724359846361,-500.0,0.00018914,2]
[335600701,1724359846372,-647.87223081,0.00018914,2]
[335600702,1724359846383,-500.0,0.00018914,2]
[335600703,1724359846393,-51079.6110042,0.00018915,2]
[335600704,1724359846403,-208.577334,0.00018915,2]
[335600705,1724359846415,-208.577334,0.00018915,2]
[335600706,1724359846427,-151.0,0.00018915,2]
[335600707,1724359846436,-290.346849,0.00018915,2]
[335600708,1724359846449,-379.983009,0.00018915,2]
[335600709,1724359846459,-379.983009,0.00018915,2]
[335600710,1724359846469,-379.983009,0.00018915,2]
[335600711,1724359846479,-379.983009,0.00018915,2]
[335600712,1724359846489,-62937.82633611,0.00018915,2]
[335600788,1724361032469,-646.51605996,0.00013599,2]
[335600789,1724361032480,-409.594576,0.00014247,2]
[335600790,1724361032489,-300.0,0.00017702,2]
[335600791,1724361032499,-12065.18586474,0.00017703,2]
[335600792,1724361032511,-954.26998511,0.00017703,2]
[335601008,1724361043809,-11880.54415015,0.00017703,2]
[335601009,1724361043819,-215.207307,0.00017863,2]
[335601010,1724361043829,-475.46180756,0.00018244,2]
[335601011,1724361043839,-500.0,0.00018521,2]
[335601012,1724361043851,-2640.95997503,0.00018576,2]
[335601013,1724361043861,-153.0,0.000186,2]
[335601014,1724361043872,-153.0,0.000186,2]
[335601016,1724361043882,-306.0,0.000187,2]
[335601018,1724361043891,-153.0,0.000187,2]
[335601020,1724361043901,-153.0,0.000187,2]
[335601021,1724361043911,-2952.10041735,0.00018814,2]
[335601022,1724361043921,-399.72548832,0.0001882,2]
[335601023,1724361043932,-2000.0,0.0001882,2]
[335601024,1724361043944,-1824.1170222,0.0001882,2]
[335601025,1724361043954,-150.0,0.000189,2]
[335601026,1724361043964,-576.91,0.000189,3]
[335601027,1724361043973,-618.38945432,0.000189,2]
[335601028,1724361043983,-294.20802565,0.00018909,2]
[335601030,1724361043993,-448.25546939,0.0001891,9]
[335601031,1724361044003,-33254.42699691,0.0001891,2]
[335601034,1724361044015,-182406.1500061,0.0001891,2]
[335601068,1724361046575,-45044.88474299,0.0001891,2]
[335601069,1724361046585,-70431.08402303,0.00018914,2]
[335601070,1724361046595,-654.38310238,0.00018915,2]
[335601071,1724361046605,-405.23584646,0.00018915,2]
[335601072,1724361046615,-886.51060802,0.00018915,2]
[335601073,1724361046624,-700.27571865,0.00018915,2]
[335601074,1724361046634,-151.0,0.00018915,2]
[335601075,1724361046643,-151.0,0.00018915,2]
[335601076,1724361046653,-151.0,0.00018915,2]
[335601077,1724361046663,-151.0,0.00018915,2]
[335601078,1724361046673,-151.0,0.00018915,2]
[335601079,1724361046683,-151.0,0.00018915,2]
[335601080,1724361046692,-151.0,0.00018915,2]
[335601081,1724361046702,-151.0,0.00018915,2]
[335601082,1724361046711,-151.0,0.00018915,2]
[335601083,1724361046721,-447.69366,0.00018915,2]
[335601084,1724361046731,-447.69366,0.00018915,2]
[335601085,1724361046742,-151.0,0.00018915,2]
[335601086,1724361046752,-151.0,0.00018915,2]
[335601087,1724361046761,-151.0,0.00018915,2]
[335601088,1724361046770,-151.0,0.00018915,2]
[335601089,1724361046779,-9563.63242583,0.0001892,9]
[335601090,1724361046789,-52141.0923493,0.0001892,2]
[335601091,1724361046799,-151.0,0.0001892,2]
[335601092,1724361046809,-151.0,0.0001892,2]
[335601093,1724361046818,-151.0,0.0001892,2]
[335601094,1724361046829,-151.0,0.0001892,2]
[335601095,1724361046838,-151.0,0.0001892,2]
[335601096,1724361046848,-179.04917,0.0001892,2]
[335601097,1724361046858,-179.04917,0.0001892,2]
[335601098,1724361046867,-179.04917,0.0001892,2]
[335601099,1724361046877,-179.04917,0.0001892,2]
[335601100,1724361046887,-179.04917,0.0001892,2]
[335601101,1724361046897,-179.04917,0.0001892,2]
[335601102,1724361046908,-179.04917,0.0001892,2]
[335601103,1724361046918,-179.04917,0.0001892,2]
[335601104,1724361046928,-179.04917,0.0001892,2]
[335601105,1724361046939,-179.04917,0.0001892,2]
[335601106,1724361046949,-179.04917,0.0001892,2]
[335601107,1724361046959,-179.04917,0.0001892,2]
[335601108,1724361046968,-151.0,0.0001892,2]
[335601109,1724361046978,-151.0,0.0001892,2]
[335601110,1724361046987,-151.0,0.0001892,2]
[335601111,1724361046996,-151.0,0.0001892,2]
[335601112,1724361047006,-151.0,0.0001892,2]
[335601113,1724361047016,-151.0,0.0001892,2]
[335601114,1724361047026,-151.0,0.0001892,2]
[335601115,1724361047035,-151.0,0.0001892,2]
[335601116,1724361047045,-151.0,0.0001892,2]
[335601117,1724361047056,-151.0,0.0001892,2]
[335601118,1724361047066,-151.0,0.0001892,2]
[335601119,1724361047075,-151.0,0.0001892,2]
[335601120,1724361047086,-151.0,0.0001892,2]
[335601121,1724361047096,-151.0,0.0001892,2]
[335601122,1724361047107,-151.0,0.0001892,2]
[335601123,1724361047117,-151.0,0.0001892,2]
[335601124,1724361047129,-151.0,0.0001892,2]
[335601125,1724361047138,-151.0,0.0001892,2]
[335601126,1724361047148,-207.159972,0.0001892,2]
[335601127,1724361047158,-207.159972,0.0001892,2]
[335601128,1724361047167,-207.159972,0.0001892,2]
[335601129,1724361047178,-207.159972,0.0001892,2]
[335601130,1724361047188,-207.159972,0.0001892,2]
[335601131,1724361047199,-207.159972,0.0001892,2]
[335601132,1724361047210,-207.159972,0.0001892,2]
[335601133,1724361047221,-207.159972,0.0001892,2]
[335601134,1724361047234,-207.159972,0.0001892,2]
[335601135,1724361047247,-207.159972,0.0001892,2]
[335601136,1724361047258,-207.159972,0.0001892,2]
[335601137,1724361047269,-207.159972,0.0001892,2]
[335601138,1724361047279,-207.159972,0.0001892,2]
[335601139,1724361047289,-207.159972,0.0001892,2]
[335601140,1724361047300,-151.0,0.0001892,2]
[335601141,1724361047312,-151.0,0.0001892,2]
[335601142,1724361047323,-151.0,0.0001892,2]
[335601143,1724361047334,-151.0,0.0001892,2]
[335601144,1724361047346,-151.0,0.0001892,2]
[335601145,1724361047357,-151.0,0.0001892,2]
[335601146,1724361047368,-249.82531,0.0001892,2]
[335601147,1724361047379,-151.0,0.0001892,2]
[335601148,1724361047389,-151.0,0.0001892,2]